[Event "Late-Titled-Tuesday-Blitz-February-13-2024"]
[Site "Chess.com"]
[Date "2024.02.13"]
[Round "4"]
[White "Savagelittlemole"]
[Black "MoreChessJulia"]
[Result "1-0"]
[WhiteElo "2461"]
[BlackElo "2102"]
[TimeControl "180+1"]
[EndTime "14:37:03 PST"]
[Termination "Savagelittlemole won by resignation"]

1. e4 {[%clk 0:03:00.9]} 1... c5 {[%clk 0:02:58.9]} 2. Bc4 {[%clk 0:03:01.1]}
2... d6 {[%clk 0:02:59.8]} 3. c3 {[%clk 0:02:59.7]} 3... a6 {[%clk 0:02:59.2]}
4. d4 {[%clk 0:02:59.2]} 4... cxd4 {[%clk 0:02:58.6]} 5. cxd4 {[%clk 0:03:00.1]}
5... Nf6 {[%clk 0:02:56.5]} 6. Nc3 {[%clk 0:02:59.5]} 6... e6 {[%clk 0:02:52.7]}
7. Nf3 {[%clk 0:02:59.1]} 7... b5 {[%clk 0:02:51.6]} 8. Bd3 {[%clk 0:02:55.8]}
8... Bb7 {[%clk 0:02:51.5]} 9. O-O {[%clk 0:02:56.2]} 9... b4 {[%clk 0:02:50.9]}
10. e5 {[%clk 0:02:48.2]} 10... dxe5 {[%clk 0:02:37.2]} 11. dxe5 {[%clk
0:02:49.1]} 11... bxc3 {[%clk 0:02:37.1]} 12. exf6 {[%clk 0:02:44.9]} 12... Qxf6
{[%clk 0:02:35.2]} 13. bxc3 {[%clk 0:02:38.9]} 13... Bxf3 {[%clk 0:02:33.5]} 14.
Qxf3 {[%clk 0:02:39.8]} 14... Qxf3 {[%clk 0:02:33.3]} 15. gxf3 {[%clk
0:02:40.6]} 15... Nd7 {[%clk 0:02:30.5]} 16. Be4 {[%clk 0:02:27.2]} 16... Rc8
{[%clk 0:02:28.8]} 17. Bb7 {[%clk 0:02:23.6]} 17... Rxc3 {[%clk 0:02:27.5]} 18.
Bxa6 {[%clk 0:02:24.2]} 18... Be7 {[%clk 0:02:24.9]} 19. Bb5 {[%clk 0:02:21.8]}
19... Rc7 {[%clk 0:02:21.9]} 20. Rd1 {[%clk 0:02:19.9]} 20... Rb7 {[%clk
0:02:16.7]} 21. a4 {[%clk 0:02:17.1]} 21... Bc5 {[%clk 0:02:07]} 22. Bb2 {[%clk
0:02:04.1]} 22... Ke7 {[%clk 0:02:06.1]} 23. Rac1 {[%clk 0:01:56.9]} 23... Bd6
{[%clk 0:02:02.6]} 24. Rc2 {[%clk 0:01:39.9]} 24... Nf6 {[%clk 0:01:58.1]} 25.
Rcd2 {[%clk 0:01:38.4]} 25... Nd5 {[%clk 0:01:57]} 26. Bc6 {[%clk 0:01:34.8]}
26... Ra7 {[%clk 0:01:56.1]} 27. Bxd5 {[%clk 0:01:33.8]} 27... exd5 {[%clk
0:01:56.2]} 28. Rxd5 {[%clk 0:01:34.7]} 28... Rd8 {[%clk 0:01:55.4]} 29. Ba3
{[%clk 0:01:07.6]} 29... Rad7 {[%clk 0:01:42.3]} 30. Rxd6 {[%clk 0:00:48.9]}
30... Rxd6 {[%clk 0:01:41.3]} 31. Kg2 {[%clk 0:00:42.7]} 31... Ke6 {[%clk
0:01:40.6]} 32. Rxd6+ {[%clk 0:00:43]} 32... Rxd6 {[%clk 0:01:39.4]} 33. Bxd6
{[%clk 0:00:43.9]} 33... Kxd6 {[%clk 0:01:39.6]} 34. Kg3 {[%clk 0:00:44.4]}
34... Kc6 {[%clk 0:01:39.8]} 35. Kg4 {[%clk 0:00:44.9]} 35... Kb6 {[%clk
0:01:40.2]} 36. f4 {[%clk 0:00:45.5]} 36... Ka5 {[%clk 0:01:40.4]} 37. f5 {[%clk
0:00:46.1]} 37... f6 {[%clk 0:01:40.6]} 38. h4 {[%clk 0:00:43.4]} 38... Kxa4
{[%clk 0:01:40.1]} 39. h5 {[%clk 0:00:43.9]} 39... Kb4 {[%clk 0:01:32.6]} 40. h6
{[%clk 0:00:41.4]} 40... gxh6 {[%clk 0:01:32.3]} 41. Kh5 {[%clk 0:00:42]} 41...
Kc4 {[%clk 0:01:32.2]} 42. Kxh6 {[%clk 0:00:41.7]} 42... Kd5 {[%clk 0:01:32.4]}
43. Kxh7 {[%clk 0:00:40.1]} 43... Ke4 {[%clk 0:01:31.8]} 44. Kg6 {[%clk
0:00:40]} 44... Ke5 {[%clk 0:01:31.7]} 45. f3 {[%clk 0:00:37.6]} 1-0

[Event "Late-Titled-Tuesday-Blitz-February-13-2024"]
[Site "Chess.com"]
[Date "2024.02.13"]
[Round "4"]
[White "Fjal"]
[Black "martinmena"]
[Result "0-1"]
[WhiteElo "2283"]
[BlackElo "2147"]
[TimeControl "180+1"]
[EndTime "14:37:13 PST"]
[Termination "martinmena won by resignation"]

1. Nf3 {[%clk 0:02:51.7]} 1... d5 {[%clk 0:02:55.6]} 2. g3 {[%clk 0:02:52.6]}
2... Nf6 {[%clk 0:02:54.4]} 3. Bg2 {[%clk 0:02:49.9]} 3... Bg4 {[%clk
0:02:52.5]} 4. O-O {[%clk 0:02:50.8]} 4... e6 {[%clk 0:02:50.8]} 5. h3 {[%clk
0:02:50.8]} 5... Bxf3 {[%clk 0:02:50.7]} 6. Bxf3 {[%clk 0:02:50.7]} 6... Be7
{[%clk 0:02:51.5]} 7. c4 {[%clk 0:02:51.4]} 7... O-O {[%clk 0:02:49.6]} 8. d3
{[%clk 0:02:45.1]} 8... c5 {[%clk 0:02:45.2]} 9. Qb3 {[%clk 0:02:44.2]} 9... Qb6
{[%clk 0:02:36.2]} 10. cxd5 {[%clk 0:02:36.4]} 10... Qxb3 {[%clk 0:02:33.6]} 11.
axb3 {[%clk 0:02:36.5]} 11... Nxd5 {[%clk 0:02:32.9]} 12. Nc3 {[%clk 0:02:34.1]}
12... Rd8 {[%clk 0:02:19]} 13. Ra4 {[%clk 0:01:59.5]} 13... Nc6 {[%clk 0:02:07]}
14. Bd2 {[%clk 0:02:00]} 14... Nd4 {[%clk 0:02:00.5]} 15. Kg2 {[%clk 0:01:55.3]}
15... Nxf3 {[%clk 0:01:52.5]} 16. Kxf3 {[%clk 0:01:56.2]} 16... Nb4 {[%clk
0:01:45.6]} 17. Ne4 {[%clk 0:01:44.5]} 17... Nc6 {[%clk 0:01:33.8]} 18. Rc1
{[%clk 0:01:42.1]} 18... Nd4+ {[%clk 0:01:30.3]} 19. Ke3 {[%clk 0:01:40.4]}
19... Nxb3 {[%clk 0:01:13.1]} 20. Rc3 {[%clk 0:01:40.5]} 20... Nxd2 {[%clk
0:01:00.1]} 21. Kxd2 {[%clk 0:01:41.4]} 21... b6 {[%clk 0:00:53.6]} 22. b4
{[%clk 0:01:40.1]} 22... cxb4 {[%clk 0:00:51.5]} 23. Rc7 {[%clk 0:01:40.8]}
23... Kf8 {[%clk 0:00:35.1]} 24. Raxa7 {[%clk 0:01:38.7]} 24... Rxa7 {[%clk
0:00:35.8]} 25. Rxa7 {[%clk 0:01:39.1]} 25... f5 {[%clk 0:00:33.8]} 26. Rxe7
{[%clk 0:01:27.1]} 26... Kxe7 {[%clk 0:00:32.6]} 27. Ng5 {[%clk 0:01:28]} 27...
h6 {[%clk 0:00:31.3]} 28. Nf3 {[%clk 0:01:28.2]} 28... Rc8 {[%clk 0:00:31.1]}
29. Nd4 {[%clk 0:01:24.2]} 29... b5 {[%clk 0:00:23.9]} 30. Nxb5 {[%clk
0:01:15.5]} 30... b3 {[%clk 0:00:23.9]} 31. Na3 {[%clk 0:01:08.2]} 31... b2
{[%clk 0:00:22.6]} 32. f4 {[%clk 0:01:07.3]} 32... Rc1 {[%clk 0:00:20.5]} 0-1

[Event "Late-Titled-Tuesday-Blitz-February-13-2024"]
[Site "Chess.com"]
[Date "2024.02.13"]
[Round "4"]
[White "ChEsper99"]
[Black "koncheto"]
[Result "0-1"]
[WhiteElo "2202"]
[BlackElo "2483"]
[TimeControl "180+1"]
[EndTime "14:37:19 PST"]
[Termination "koncheto won by resignation"]

1. d4 {[%clk 0:03:00.9]} 1... Nf6 {[%clk 0:02:55.1]} 2. Bf4 {[%clk 0:03:00.8]}
2... e6 {[%clk 0:02:49.1]} 3. Nf3 {[%clk 0:03:00.8]} 3... c5 {[%clk 0:02:48.3]}
4. c3 {[%clk 0:02:58.6]} 4... d5 {[%clk 0:02:48.3]} 5. e3 {[%clk 0:02:57.6]}
5... Bd6 {[%clk 0:02:48.9]} 6. Bg3 {[%clk 0:02:55.6]} 6... Qc7 {[%clk 0:02:49]}
7. dxc5 {[%clk 0:02:53.6]} 7... Qxc5 {[%clk 0:02:49.2]} 8. Nbd2 {[%clk 0:02:51]}
8... O-O {[%clk 0:02:49.2]} 9. Bd3 {[%clk 0:02:51.1]} 9... Nbd7 {[%clk
0:02:47.5]} 10. O-O {[%clk 0:02:45.1]} 10... Bxg3 {[%clk 0:02:44.5]} 11. hxg3
{[%clk 0:02:46]} 11... b6 {[%clk 0:02:42.4]} 12. e4 {[%clk 0:02:40.9]} 12...
dxe4 {[%clk 0:02:41.2]} 13. Nxe4 {[%clk 0:02:40.9]} 13... Qe7 {[%clk 0:02:42.1]}
14. Qe2 {[%clk 0:02:34.6]} 14... Bb7 {[%clk 0:02:42.4]} 15. Rfd1 {[%clk
0:02:33.4]} 15... Rfd8 {[%clk 0:02:41]} 16. Bc2 {[%clk 0:02:26.2]} 16... Nc5
{[%clk 0:02:36.6]} 17. Nfg5 {[%clk 0:02:14]} 17... h6 {[%clk 0:02:35]} 18. Nxf6+
{[%clk 0:02:12.7]} 18... Qxf6 {[%clk 0:02:35.6]} 19. Ne4 {[%clk 0:02:08.4]}
19... Qe5 {[%clk 0:02:35.8]} 20. f4 {[%clk 0:01:24.9]} 20... Qc7 {[%clk
0:02:31.3]} 21. Nxc5 {[%clk 0:01:10.2]} 21... Qxc5+ {[%clk 0:02:27.7]} 22. Qf2
{[%clk 0:01:10.5]} 22... Qh5 {[%clk 0:02:22.5]} 23. f5 {[%clk 0:00:54.7]} 23...
exf5 {[%clk 0:02:18.4]} 24. Qxf5 {[%clk 0:00:51.1]} 24... Qxf5 {[%clk
0:02:02.5]} 25. Bxf5 {[%clk 0:00:52]} 25... Re8 {[%clk 0:02:03.4]} 26. Re1
{[%clk 0:00:51.6]} 26... Bd5 {[%clk 0:02:02.2]} 27. Rad1 {[%clk 0:00:49]} 27...
Bxa2 {[%clk 0:01:56.7]} 28. Rxe8+ {[%clk 0:00:45.7]} 28... Rxe8 {[%clk
0:01:56.6]} 29. Ra1 {[%clk 0:00:46.4]} 29... Be6 {[%clk 0:01:53.1]} 30. Bxe6
{[%clk 0:00:44.9]} 30... Rxe6 {[%clk 0:01:54]} 31. Rxa7 {[%clk 0:00:44.4]} 31...
Re2 {[%clk 0:01:54.7]} 32. Rc7 {[%clk 0:00:08.2]} 32... Rxb2 {[%clk 0:01:53.2]}
33. Kh2 {[%clk 0:00:08.7]} 33... h5 {[%clk 0:01:52.8]} 34. Kh3 {[%clk
0:00:08.8]} 34... g6 {[%clk 0:01:53]} 35. Rc4 {[%clk 0:00:07.8]} 35... Kg7
{[%clk 0:01:53.1]} 36. Rc6 {[%clk 0:00:07.7]} 36... Rb1 {[%clk 0:01:53.2]} 37.
Kh2 {[%clk 0:00:08]} 37... Rb5 {[%clk 0:01:42.3]} 38. Rc4 {[%clk 0:00:07.7]}
38... Rc5 {[%clk 0:01:40.9]} 39. Rb4 {[%clk 0:00:07.2]} 39... b5 {[%clk
0:01:37.8]} 40. Rb3 {[%clk 0:00:06.5]} 40... Kf6 {[%clk 0:01:38.2]} 41. Kh3
{[%clk 0:00:06.6]} 41... Ke5 {[%clk 0:01:38.6]} 42. Kh4 {[%clk 0:00:05.9]} 42...
Kd5 {[%clk 0:01:38]} 43. Kg5 {[%clk 0:00:04.7]} 43... Kc4+ {[%clk 0:01:38.5]}
0-1

[Event "Late-Titled-Tuesday-Blitz-February-13-2024"]
[Site "Chess.com"]
[Date "2024.02.13"]
[Round "4"]
[White "ajeale2"]
[Black "Doublekk14"]
[Result "1-0"]
[WhiteElo "2517"]
[BlackElo "2328"]
[TimeControl "180+1"]
[EndTime "14:37:20 PST"]
[Termination "ajeale2 won on time"]

1. c4 {[%clk 0:03:00.9]} 1... c5 {[%clk 0:02:56.2]} 2. Nf3 {[%clk 0:03:01.2]}
2... Nf6 {[%clk 0:02:56]} 3. g3 {[%clk 0:03:01.7]} 3... e6 {[%clk 0:02:56.1]} 4.
Bg2 {[%clk 0:03:02.4]} 4... d5 {[%clk 0:02:56.5]} 5. O-O {[%clk 0:03:01.8]} 5...
Nc6 {[%clk 0:02:56.6]} 6. d3 {[%clk 0:03:00.4]} 6... Be7 {[%clk 0:02:56]} 7. Nc3
{[%clk 0:02:57.5]} 7... O-O {[%clk 0:02:55.6]} 8. Bf4 {[%clk 0:02:55.7]} 8...
Nh5 {[%clk 0:02:49.1]} 9. cxd5 {[%clk 0:02:48.5]} 9... Nxf4 {[%clk 0:02:46.6]}
10. gxf4 {[%clk 0:02:45.7]} 10... exd5 {[%clk 0:02:46.4]} 11. Rc1 {[%clk
0:02:45.1]} 11... Be6 {[%clk 0:02:33.4]} 12. Qd2 {[%clk 0:02:42.8]} 12... h6
{[%clk 0:02:13.2]} 13. Na4 {[%clk 0:02:27.1]} 13... b6 {[%clk 0:02:07.2]} 14. d4
{[%clk 0:02:26.7]} 14... c4 {[%clk 0:02:02]} 15. b3 {[%clk 0:02:10.3]} 15... b5
{[%clk 0:01:50.7]} 16. Nc5 {[%clk 0:02:09.9]} 16... Bxc5 {[%clk 0:01:42.2]} 17.
dxc5 {[%clk 0:02:09.8]} 17... Qe7 {[%clk 0:01:36.3]} 18. f5 {[%clk 0:02:03.3]}
18... Bxf5 {[%clk 0:01:27]} 19. Qxd5 {[%clk 0:02:02.3]} 19... Be4 {[%clk
0:01:27.1]} 20. Qd6 {[%clk 0:02:02.7]} 20... Qxd6 {[%clk 0:01:23.2]} 21. cxd6
{[%clk 0:02:02.7]} 21... cxb3 {[%clk 0:01:23.4]} 22. axb3 {[%clk 0:02:02.4]}
22... Rad8 {[%clk 0:01:10.9]} 23. Rfd1 {[%clk 0:01:57.5]} 23... f5 {[%clk
0:00:51.7]} 24. Nh4 {[%clk 0:01:46.1]} 24... Bxg2 {[%clk 0:00:32.1]} 25. Kxg2
{[%clk 0:01:44.6]} 25... Ne5 {[%clk 0:00:30.6]} 26. Rc5 {[%clk 0:01:39.8]} 26...
Nd7 {[%clk 0:00:07.6]} 27. Rxb5 {[%clk 0:01:32.8]} 27... g6 {[%clk 0:00:05.4]}
28. Nxg6 {[%clk 0:01:30.7]} 28... Rf6 {[%clk 0:00:03.4]} 29. Ne7+ {[%clk
0:01:29.8]} 29... Kf7 {[%clk 0:00:03.6]} 30. Rxf5 {[%clk 0:01:29.7]} 30... Rxf5
{[%clk 0:00:02.4]} 31. Nxf5 {[%clk 0:01:30]} 31... Ke6 {[%clk 0:00:03.3]} 32.
Nxh6 {[%clk 0:01:16.4]} 1-0

[Event "Late-Titled-Tuesday-Blitz-February-13-2024"]
[Site "Chess.com"]
[Date "2024.02.13"]
[Round "4"]
[White "Qingdom"]
[Black "szachmistrz2500"]
[Result "0-1"]
[WhiteElo "2182"]
[BlackElo "2466"]
[TimeControl "180+1"]
[EndTime "14:37:26 PST"]
[Termination "szachmistrz2500 won by resignation"]

1. d4 {[%clk 0:03:00.9]} 1... c5 {[%clk 0:02:56.3]} 2. d5 {[%clk 0:03:00.7]}
2... e5 {[%clk 0:02:55.4]} 3. e4 {[%clk 0:02:59.2]} 3... d6 {[%clk 0:02:53.7]}
4. Bb5+ {[%clk 0:02:58]} 4... Nd7 {[%clk 0:02:51.7]} 5. c4 {[%clk 0:02:56.8]}
5... a6 {[%clk 0:02:49.9]} 6. Bxd7+ {[%clk 0:02:56.7]} 6... Bxd7 {[%clk
0:02:49]} 7. Nc3 {[%clk 0:02:56.7]} 7... b5 {[%clk 0:02:47.6]} 8. b3 {[%clk
0:02:51.4]} 8... g6 {[%clk 0:02:45.9]} 9. Be3 {[%clk 0:02:48.7]} 9... Bh6 {[%clk
0:02:41]} 10. Qd2 {[%clk 0:02:48.3]} 10... Bxe3 {[%clk 0:02:39]} 11. Qxe3 {[%clk
0:02:48.5]} 11... Kf8 {[%clk 0:02:35.7]} 12. Nge2 {[%clk 0:02:48.1]} 12... Kg7
{[%clk 0:02:35.8]} 13. f3 {[%clk 0:02:48]} 13... h5 {[%clk 0:02:21.6]} 14. a4
{[%clk 0:02:46.7]} 14... bxc4 {[%clk 0:02:19.6]} 15. bxc4 {[%clk 0:02:46.4]}
15... Rb8 {[%clk 0:02:16.9]} 16. O-O {[%clk 0:02:45.8]} 16... Rb4 {[%clk
0:02:03.9]} 17. Qd3 {[%clk 0:02:45.5]} 17... Nf6 {[%clk 0:01:41.4]} 18. Rfb1
{[%clk 0:02:43.9]} 18... Qa5 {[%clk 0:01:39.8]} 19. Rxb4 {[%clk 0:02:31.1]}
19... cxb4 {[%clk 0:01:39.2]} 20. Nd1 {[%clk 0:02:30.2]} 20... Rc8 {[%clk
0:01:33.3]} 21. Nb2 {[%clk 0:02:29.9]} 21... Qc5+ {[%clk 0:01:32.1]} 22. Kf1
{[%clk 0:02:25.9]} 22... a5 {[%clk 0:01:28]} 23. Nc1 {[%clk 0:02:25.2]} 23...
Qb6 {[%clk 0:01:14.5]} 24. Nb3 {[%clk 0:02:24.6]} 24... Be8 {[%clk 0:01:11.1]}
25. Rc1 {[%clk 0:02:21.2]} 25... Nd7 {[%clk 0:01:11]} 26. Qe2 {[%clk 0:02:13]}
26... Rc7 {[%clk 0:01:10.1]} 27. Qf2 {[%clk 0:02:11.3]} 27... Qa6 {[%clk
0:01:04.9]} 28. Kg1 {[%clk 0:02:08.3]} 28... Nc5 {[%clk 0:01:04.2]} 29. Nxc5
{[%clk 0:02:04.5]} 29... Rxc5 {[%clk 0:01:04.4]} 30. Qc2 {[%clk 0:02:03.3]}
30... Bd7 {[%clk 0:00:59.6]} 31. Qb3 {[%clk 0:02:02.7]} 31... Rc7 {[%clk
0:00:57.7]} 32. Nd3 {[%clk 0:02:00]} 32... Qa7+ {[%clk 0:00:55.6]} 33. Kf1
{[%clk 0:01:59.1]} 33... Qe3 {[%clk 0:00:54.3]} 34. Qd1 {[%clk 0:01:30.3]} 34...
Bxa4 {[%clk 0:00:50.8]} 35. Qxa4 {[%clk 0:01:28.9]} 35... Qxd3+ {[%clk 0:00:51]}
36. Ke1 {[%clk 0:01:27.7]} 36... Qe3+ {[%clk 0:00:49.4]} 37. Kd1 {[%clk
0:01:27.8]} 37... Qg1+ {[%clk 0:00:48.3]} 38. Kd2 {[%clk 0:01:25.4]} 38... Qxg2+
{[%clk 0:00:47.6]} 39. Ke1 {[%clk 0:01:25.1]} 39... Qh1+ {[%clk 0:00:46.9]} 40.
Kd2 {[%clk 0:01:23.9]} 40... Qxh2+ {[%clk 0:00:47.1]} 41. Ke1 {[%clk 0:01:24.2]}
41... Qg1+ {[%clk 0:00:46.8]} 42. Kd2 {[%clk 0:01:24.3]} 42... Qf2+ {[%clk
0:00:46.8]} 43. Kd1 {[%clk 0:01:24.4]} 43... Qxf3+ {[%clk 0:00:46.7]} 44. Kd2
{[%clk 0:01:25]} 44... Qf2+ {[%clk 0:00:43.6]} 45. Kd1 {[%clk 0:01:25.1]} 45...
Qd4+ {[%clk 0:00:43.7]} 46. Ke1 {[%clk 0:01:25.3]} 46... Qxe4+ {[%clk 0:00:44]}
47. Kd2 {[%clk 0:01:25.3]} 47... Qf4+ {[%clk 0:00:41]} 48. Kd1 {[%clk
0:01:25.3]} 48... Rxc4 {[%clk 0:00:29.2]} 49. Rxc4 {[%clk 0:01:24.9]} 49... Qxc4
{[%clk 0:00:29.1]} 50. Qxa5 {[%clk 0:01:25.3]} 50... Qd3+ {[%clk 0:00:26.7]} 51.
Ke1 {[%clk 0:01:24.8]} 51... b3 {[%clk 0:00:26.7]} 0-1

[Event "Late-Titled-Tuesday-Blitz-February-13-2024"]
[Site "Chess.com"]
[Date "2024.02.13"]
[Round "4"]
[White "katharinareinecke"]
[Black "Heinza9"]
[Result "0-1"]
[WhiteElo "1960"]
[BlackElo "2282"]
[TimeControl "180+1"]
[EndTime "14:37:32 PST"]
[Termination "Heinza9 won by checkmate"]

1. e4 {[%clk 0:03:00.9]} 1... e5 {[%clk 0:02:56.4]} 2. Nc3 {[%clk 0:02:59.4]}
2... Nf6 {[%clk 0:02:55.8]} 3. f4 {[%clk 0:02:58.5]} 3... d5 {[%clk 0:02:56.1]}
4. fxe5 {[%clk 0:02:57.6]} 4... Nxe4 {[%clk 0:02:55.8]} 5. Qf3 {[%clk
0:02:54.9]} 5... Nc6 {[%clk 0:02:55.9]} 6. Bb5 {[%clk 0:02:47.5]} 6... Nxc3
{[%clk 0:02:54.2]} 7. dxc3 {[%clk 0:02:43.9]} 7... Be7 {[%clk 0:02:54.1]} 8. Qg3
{[%clk 0:02:37.2]} 8... g6 {[%clk 0:02:43.1]} 9. Nf3 {[%clk 0:02:24.4]} 9... a6
{[%clk 0:02:37.1]} 10. Bxc6+ {[%clk 0:02:20.4]} 10... bxc6 {[%clk 0:02:37.3]}
11. O-O {[%clk 0:02:19.4]} 11... Qd7 {[%clk 0:02:35.5]} 12. Bh6 {[%clk
0:02:14.3]} 12... Qg4 {[%clk 0:02:31.7]} 13. Qf2 {[%clk 0:02:02.1]} 13... Qh5
{[%clk 0:02:22.7]} 14. Qd2 {[%clk 0:02:00.8]} 14... Bc5+ {[%clk 0:02:19]} 15.
Kh1 {[%clk 0:01:55.7]} 15... Bg4 {[%clk 0:02:15.5]} 16. Nd4 {[%clk 0:01:51]}
16... Bxd4 {[%clk 0:02:11.6]} 17. cxd4 {[%clk 0:01:49.6]} 17... Bf5 {[%clk
0:01:55.7]} 18. Bg7 {[%clk 0:01:47.1]} 18... Rg8 {[%clk 0:01:55]} 19. Bf6 {[%clk
0:01:47.2]} 19... Be4 {[%clk 0:01:50.3]} 20. Qa5 {[%clk 0:01:35.7]} 20... Kd7
{[%clk 0:01:48.3]} 21. Qc5 {[%clk 0:01:33.8]} 21... Rae8 {[%clk 0:01:44.7]} 22.
c4 {[%clk 0:01:27.1]} 22... g5 {[%clk 0:01:42.7]} 23. b4 {[%clk 0:01:09.9]}
23... g4 {[%clk 0:01:41.7]} 24. b5 {[%clk 0:00:55.2]} 24... Re6 {[%clk
0:01:21.2]} 25. bxc6+ {[%clk 0:00:44.8]} 25... Rxc6 {[%clk 0:01:21.4]} 26. Qe7+
{[%clk 0:00:44.7]} 26... Kc8 {[%clk 0:01:21.7]} 27. Bh4 {[%clk 0:00:24.6]} 27...
Rxc4 {[%clk 0:01:15.1]} 28. Rac1 {[%clk 0:00:21.8]} 28... g3 {[%clk 0:00:56.2]}
29. h3 {[%clk 0:00:19.5]} 29... Qe2 {[%clk 0:00:54.4]} 30. Rg1 {[%clk 0:00:17]}
30... Rxc1 {[%clk 0:00:54.2]} 31. Rxc1 {[%clk 0:00:05.2]} 31... Qxg2# {[%clk
0:00:53.9]} 0-1

[Event "Late-Titled-Tuesday-Blitz-February-13-2024"]
[Site "Chess.com"]
[Date "2024.02.13"]
[Round "4"]
[White "ProfessorChess101"]
[Black "pooh2012"]
[Result "1-0"]
[WhiteElo "2789"]
[BlackElo "2560"]
[TimeControl "180+1"]
[EndTime "14:37:36 PST"]
[Termination "ProfessorChess101 won by resignation"]

1. d4 {[%clk 0:03:00.9]} 1... Nf6 {[%clk 0:02:59.2]} 2. c4 {[%clk 0:02:59.5]}
2... e6 {[%clk 0:02:59]} 3. Nc3 {[%clk 0:02:59.6]} 3... Bb4 {[%clk 0:02:57.9]}
4. e3 {[%clk 0:02:55.9]} 4... O-O {[%clk 0:02:56.9]} 5. Nf3 {[%clk 0:02:56]}
5... c5 {[%clk 0:02:55.4]} 6. Bd2 {[%clk 0:02:53]} 6... cxd4 {[%clk 0:02:53.6]}
7. exd4 {[%clk 0:02:51.2]} 7... d5 {[%clk 0:02:49.3]} 8. c5 {[%clk 0:02:49.7]}
8... b6 {[%clk 0:02:44.7]} 9. a3 {[%clk 0:02:48.7]} 9... Bxc3 {[%clk 0:02:41.7]}
10. Bxc3 {[%clk 0:02:49.6]} 10... Ne4 {[%clk 0:02:28.7]} 11. Rc1 {[%clk
0:02:20.9]} 11... Ba6 {[%clk 0:02:16.5]} 12. Bxa6 {[%clk 0:02:12.8]} 12... Nxa6
{[%clk 0:02:17.4]} 13. b4 {[%clk 0:02:12.6]} 13... Nc7 {[%clk 0:02:14]} 14. O-O
{[%clk 0:02:08.9]} 14... a5 {[%clk 0:02:07.2]} 15. Ne5 {[%clk 0:01:50.7]} 15...
axb4 {[%clk 0:01:55.8]} 16. Bxb4 {[%clk 0:01:50.6]} 16... bxc5 {[%clk 0:01:35]}
17. dxc5 {[%clk 0:01:49.3]} 17... Na6 {[%clk 0:01:30.1]} 18. c6 {[%clk 0:01:39]}
18... Re8 {[%clk 0:01:05.1]} 19. Qf3 {[%clk 0:01:33.4]} 19... f6 {[%clk
0:00:52.4]} 20. Nd7 {[%clk 0:01:16.8]} 20... Nxb4 {[%clk 0:00:50.6]} 21. axb4
{[%clk 0:01:17.7]} 21... Nd2 {[%clk 0:00:46.9]} 22. Qe3 {[%clk 0:01:10.7]} 22...
Nxf1 {[%clk 0:00:46.4]} 23. Kxf1 {[%clk 0:01:11.6]} 23... Qe7 {[%clk 0:00:34.3]}
24. b5 {[%clk 0:01:07.1]} 24... Ra3 {[%clk 0:00:31.7]} 25. Qc5 {[%clk
0:00:59.9]} 25... Kf7 {[%clk 0:00:24.1]} 26. b6 {[%clk 0:00:49.3]} 26... Rb3
{[%clk 0:00:16.1]} 27. b7 {[%clk 0:00:44.3]} 27... Qxc5 {[%clk 0:00:12.6]} 28.
Nxc5 {[%clk 0:00:42.6]} 28... Rb5 {[%clk 0:00:10.4]} 29. c7 {[%clk 0:00:41.9]}
1-0

[Event "Late-Titled-Tuesday-Blitz-February-13-2024"]
[Site "Chess.com"]
[Date "2024.02.13"]
[Round "4"]
[White "Noki102"]
[Black "NitaLucian"]
[Result "0-1"]
[WhiteElo "2513"]
[BlackElo "2361"]
[TimeControl "180+1"]
[EndTime "14:37:38 PST"]
[Termination "NitaLucian won by resignation"]

1. d4 {[%clk 0:03:00.9]} 1... d6 {[%clk 0:02:59.1]} 2. e4 {[%clk 0:03:00.3]}
2... Nf6 {[%clk 0:02:59.3]} 3. Nc3 {[%clk 0:02:59.4]} 3... e5 {[%clk 0:02:59.4]}
4. Nf3 {[%clk 0:02:58.6]} 4... Nbd7 {[%clk 0:02:59.1]} 5. g3 {[%clk 0:02:55.7]}
5... Be7 {[%clk 0:02:59.5]} 6. Bg2 {[%clk 0:02:55.5]} 6... O-O {[%clk 0:03:00]}
7. O-O {[%clk 0:02:56]} 7... Rb8 {[%clk 0:03:00]} 8. a4 {[%clk 0:02:54.8]} 8...
a6 {[%clk 0:02:59.7]} 9. a5 {[%clk 0:02:55]} 9... exd4 {[%clk 0:02:58.5]} 10.
Nxd4 {[%clk 0:02:53.8]} 10... Ne5 {[%clk 0:02:55.2]} 11. h3 {[%clk 0:02:52.6]}
11... c5 {[%clk 0:02:54.6]} 12. Nde2 {[%clk 0:02:47.4]} 12... Nc6 {[%clk
0:02:54.1]} 13. Nf4 {[%clk 0:02:46.1]} 13... Nxa5 {[%clk 0:02:53.2]} 14. Nfd5
{[%clk 0:02:31.7]} 14... Nc6 {[%clk 0:02:52.2]} 15. Nxe7+ {[%clk 0:02:28.7]}
15... Qxe7 {[%clk 0:02:51.7]} 16. Bg5 {[%clk 0:02:28.9]} 16... Qe6 {[%clk
0:02:51.4]} 17. Nd5 {[%clk 0:02:01]} 17... Ne8 {[%clk 0:02:50.7]} 18. Nb6 {[%clk
0:01:47.1]} 18... h6 {[%clk 0:02:36.2]} 19. Bf4 {[%clk 0:01:45]} 19... Ne5
{[%clk 0:02:34.7]} 20. Nxc8 {[%clk 0:01:36.5]} 20... Rxc8 {[%clk 0:02:31.1]} 21.
b3 {[%clk 0:01:32.8]} 21... c4 {[%clk 0:02:28.9]} 22. b4 {[%clk 0:01:26.8]}
22... c3 {[%clk 0:02:26.9]} 23. Be3 {[%clk 0:01:26]} 23... Rc4 {[%clk
0:02:24.1]} 24. Rb1 {[%clk 0:01:08.9]} 24... b5 {[%clk 0:02:18]} 25. f4 {[%clk
0:00:55.5]} 25... Nc6 {[%clk 0:02:16.7]} 26. e5 {[%clk 0:00:42.3]} 26... Nxb4
{[%clk 0:02:16.2]} 27. Rxb4 {[%clk 0:00:23.1]} 27... Rxb4 {[%clk 0:02:14.2]} 28.
Bd5 {[%clk 0:00:24]} 28... Qxh3 {[%clk 0:02:11.3]} 29. Kf2 {[%clk 0:00:21.9]}
29... dxe5 {[%clk 0:02:01.5]} 30. fxe5 {[%clk 0:00:19.6]} 30... Qf5+ {[%clk
0:01:54.7]} 31. Kg2 {[%clk 0:00:14.5]} 31... Qxe5 {[%clk 0:01:50.3]} 32. Bc5
{[%clk 0:00:14.5]} 32... Nf6 {[%clk 0:01:35.2]} 33. Bxb4 {[%clk 0:00:05.8]}
33... Qxd5+ {[%clk 0:01:17.6]} 34. Qxd5 {[%clk 0:00:05.6]} 34... Nxd5 {[%clk
0:01:17.5]} 35. Bxf8 {[%clk 0:00:06.5]} 35... Kxf8 {[%clk 0:01:17.1]} 36. Rd1
{[%clk 0:00:06.6]} 36... Ne3+ {[%clk 0:01:16.4]} 37. Kf3 {[%clk 0:00:05.7]}
37... Nxd1 {[%clk 0:01:16.2]} 38. Ke2 {[%clk 0:00:06]} 38... Nb2 {[%clk
0:01:15.3]} 39. Ke3 {[%clk 0:00:06]} 39... b4 {[%clk 0:01:14.2]} 40. Kd4 {[%clk
0:00:06.9]} 40... a5 {[%clk 0:01:14.3]} 41. g4 {[%clk 0:00:05.6]} 41... g5
{[%clk 0:01:13.5]} 42. Ke5 {[%clk 0:00:05.7]} 42... b3 {[%clk 0:01:13]} 0-1